Cogmind - Beta 9.4 @@@ ROGUE MODE // 2020.02.11 @ 17:33:25 Player: j4nw Result: Destroyed by G-34 Mercenary with Small Laser Performance ------------- Evolutions (0) 0 Regions Visited (1) 200 Robots Destroyed (13) 65 Value Destroyed (283) 283 Prototype IDs (0) 0 Alien Tech Used (0) 0 Bonus (0) 0 TOTAL SCORE: 548 Bonus ------- None Cogmind --------- Core Integrity 0/250 Matter 287/300 Energy 250/250 System Corruption 1% Temperature Cool (18) Movement Core (650) Ox12 Location -10/Materials Parts ------- > --- POWER (1) -------- Ion Engine > --- PROPULSION (2) --- Aluminum Leg > --- UTILITY (2) ------ High-capacity Storage Unit > --- WEAPON (2) ------- (None) > --- INVENTORY (12) --- Light Nuclear Core Aluminum Leg Aluminum Leg Improved Heat Sink Large Storage Unit Peak State ------------ > --- POWER ------------ Ion Engine > --- PROPULSION ------- Aluminum Leg Aluminum Leg > --- UTILITY ---------- Large Storage Unit Large Storage Unit > --- WEAPON ----------- Assault Rifle Light Assault Rifle > --- INVENTORY -------- Ion Engine Small Storage Unit [Rating: 7] Favorites ----------- Power Ion Engine Engine Ion Engine Propulsion Aluminum Leg Leg Aluminum Leg Utility Medium Storage Unit Storage Medium Storage Unit Weapon Assault Rifle Ballistic Gun Assault Rifle Ballistic Cannon Light Cannon Build | -11 -10 ------- Run | Scr Mat Slots Evolved . | . . Power . | . . Propulsion . | . . Utility . | . . Weapon . | . . Parts Attached 21 | 6 15 Power 4 | 1 3 Engine 4 | 1 3 Core . | . . Reactor . | . . Propulsion 6 | 2 4 Treads . | . . Leg 6 | 2 4 Wheel . | . . Hover . | . . Flight . | . . Utility 5 | 1 4 Device . | . . Storage 5 | 1 4 Processor . | . . Hackware . | . . Protection . | . . Artifact . | . . Weapon 6 | 2 4 Energy Gun . | . . Energy Cannon . | . . Ballistic Gun 5 | 2 3 Ballistic Cannon 1 | . 1 Launcher . | . . Special Weapon . | . . Impact Weapon . | . . Slashing Weapon . | . . Piercing Weapon . | . . Special Melee Weapon . | . . Unidentified Prototypes . | . . Parts Lost 7 | . 7 Power 1 | . 1 Propulsion 3 | . 3 Utility . | . . Weapon 3 | . 3 Highest Loss Streak 3 | . 3 Average Slot Usage (%) 70 | . 70 Engine 14 | . 14 Leg 26 | . 26 Storage 14 | . 14 Ballistic Gun 11 | . 11 Ballistic Cannon 3 | . 3 Naked Turns . | . . Heaviest Build 40 | 12 40 Greatest Support 20 | 20 20 Greatest Overweight (x) 1 | . 1 Average Overweight (x) . | . . Largest Inventory Capacity 16 | 6 16 Average Capacity 8 | 5 9 Most Carried 8 | 4 8 Average Carried 4 | 1 4 Final Capacity 12 | 6 12 Final Carried 5 | 1 5 Class Distribution -------------------- 100% | Mutant Dominant Class ---------------- Mutant | -10/Materials Resources | -11 -10 ----------- Run | Scr Mat Matter Collected 502 | 203 299 Remotely . | . . Salvage Created 348 | . 348 Parts 20 | . 20 Haulers Intercepted . | . . Recyclers Shooed . | . . Parts Field Recycled . | . . Retrieved Matter . | . . Parts Self-Destructed . | . . Prevented . | . . Kills | -11 -10 ------- Run | Scr Mat Combat Hostiles Destroyed 12 | . 12 Guns 8 | . 8 Cannons 4 | . 4 Classes Destroyed 3 | . 3 Recycler 1 | . 1 Swarmer 6 | . 6 Grunt 6 | . 6 Best Kill Streak 5 | . 5 Combat Bots Only 4 | . 4 Max Kills in Single Turn 1 | . 1 Gunslinging . | . . Exploded . | . . Melee . | . . Uniques/NPCs Destroyed . | . . Combat | -11 -10 -------- Run | Scr Mat Damage Taken 1003 | . 1003 Core 258 | . 258 Absorbed by Shields . | . . Core Remaining (%) 100 | 100 . Volleys Fired 46 | . 46 Largest 2 | . 2 Hottest 55 | . 55 Shots Fired 61 | . 61 Gun 39 | . 39 Cannon 22 | . 22 Launcher . | . . Special . | . . Kinetic 61 | . 61 Thermal . | . . Explosive . | . . Electromagnetic . | . . Robot Hit Streak 9 | . 9 Robot Miss Streak 3 | . 3 Penetration Max . | . . Secondary Targets . | . . Shots Hit Robots 40 | . 40 Core Hits 22 | . 22 Critical Hits . | . . Critical Kills . | . . Critical Parts Destroyed . | . . Melee Attacks . | . . Impact . | . . Slashing . | . . Piercing . | . . Sneak Attacks . | . . Combat Hostiles . | . . Follow-up Attacks . | . . Damage Inflicted 636 | . 636 Guns 323 | . 323 Cannons 275 | . 275 Explosions . | . . Melee . | . . Ramming 38 | . 38 Kinetic 598 | . 598 Thermal . | . . Explosive . | . . Electromagnetic . | . . Impact . | . . Slashing . | . . Piercing . | . . Highest Corruption 1 | . 1 Average Corruption 1 | . 1 Corruption Purged . | . . Effects 2 | . 2 Message Errors 1 | . 1 Weapon Failures 1 | . 1 Overload Shots . | . . Overflow Damage . | . . Projectiles . | . . Explosions . | . . Melee . | . . Knockbacks 5 | . 5 Impact . | . . Kinetic 5 | . 5 Secondary . | . . Self-Inflicted Damage 7 | . 7 Shots . | . . Rammed 7 | . 7 Targets Rammed 13 | . 13 Kicked 6 | . 6 Crushed . | . . Highest Temperature 84 | . 84 Average Temperature 40 | . 40 Received Heat Transfer 474 | . 474 Siege Activations . | . . Robots Corrupted . | . . Combat Hostiles . | . . Parts Fried . | . . Impact Corruptions . | . . Robots Melted . | . . Combat Hostiles . | . . Parts Melted . | . . Heat Transferred . | . . Parts Sabotaged . | . . Parts Stolen . | . . Parts Stripped . | . . Power Chain Reactions . | . . Missiles Intercepted . | . . Alert | -11 -10 ------- Run | Scr Mat Peak Influence 234 | . 234 Average Influence 66 | . 70 Maximum Alert Level 1 | . 1 Low Security (%) 94 | 100 94 Level 1 5 | . 5 Level 2 . | . . Level 3 . | . . Level 4 . | . . Level 5 . | . . High Security . | . . Max Security . | . . Squads Dispatched 2 | . 2 Investigation . | . . Extermination . | . . Reinforcement 2 | . 2 Assault . | . . Garrison . | . . Intercept . | . . Construction Impeded . | . . Haulers Reinforced . | . . Stealth | -11 -10 --------- Run | Scr Mat Distress Signals 2 | . 2 Communications Jammed . | . . Distress Signals . | . . Times Spotted 23 | . 23 Peak Tracking Total 6 | . 6 Tactical Retreats . | . . Traps | -11 -10 ------- Run | Scr Mat Traps Triggered 4 | . 4 Indirectly . | . . Trap Hack Attempts . | . . Triggered . | . . Disarmed . | . . Reprogrammed . | . . Reused . | . . Traps Extracted . | . . Installed . | . . Triggered . | . . Machines | -11 -10 ---------- Run | Scr Mat Machines Disabled . | . . Max in Single Turn . | . . Machines Sabotaged . | . . Garrisons Compromised . | . . Overloaded Fab Kills . | . . Fab Network Shutdowns . | . . Hacking | -11 -10 --------- Run | Scr Mat Machines Accessed 1 | . 1 Terminals 1 | . 1 Fabricators . | . . Repair Stations . | . . Recycling Units . | . . Scanalyzers . | . . Garrison Access . | . . Total Hacks 2 | . 2 Successful 2 | . 2 Failed . | . . Catastrophic . | . . Database Lockouts . | . . Manual . | . . Terminals 2 | . 2 Fabricators . | . . Repair Stations . | . . Recycling Units . | . . Scanalyzers . | . . Garrison Access . | . . Terminal Hacks 2 | . 2 Emergency Access Points 1 | . 1 Alert Level 1 | . 1 Fabricator Hacks . | . . Repair Station Hacks . | . . Recycling Unit Hacks . | . . Scanalyzer . | . . Garrison Access Hacks . | . . Unauthorized Hacks . | . . Terminals . | . . Fabricators . | . . Repair Stations . | . . Recycling Units . | . . Scanalyzers . | . . Garrison Access . | . . Data Cores Recovered . | . . Used . | . . Hacking Detections . | . . Full Trace Events . | . . Feedback Events . | . . Feedback Blocked . | . . Robot Schematics Acquired . | . . Robots Built . | . . Matter . | . . Time . | . . Total Robot Build Rating . | . . Part Schematics Acquired . | . . Parts Built . | . . Matter . | . . Time . | . . Total Part Build Rating . | . . Parts Repaired . | . . Time . | . . Parts Recycled . | . . Recycled Matter . | . . Retrieved Matter . | . . Retrieved Components . | . . Parts Scanalyzed . | . . Part Schematics Acquired . | . . Parts Damaged . | . . Bothacking | -11 -10 ------------ Run | Scr Mat Used RIF Installer . | . . Robots Hacked . | . . Non-combat . | . . Combat . | . . Robot Hacks Applied . | . . Relay Couplers Released . | . . Robots Rewired . | . . Allies Hacked . | . . Hacks Repelled . | . . Allies | -11 -10 -------- Run | Scr Mat Total Allies . | . . Largest Group . | . . Highest-Rated Group . | . . Highest-Rated Ally . | . . Total Orders . | . . Ally Attacks . | . . Total Damage . | . . Kills . | . . Allies Corrupted . | . . Allies Melted . | . . Intel | -11 -10 ------- Run | Scr Mat Robot Analysis Total . | . . Derelict Logs Recovered . | . . Drone Launches . | . . Drone Recoveries . | . . Exploration | -11 -10 ------------- Run | Scr Mat Turns Passed 678 | 44 634 Spaces Moved 342 | 28 314 Core 3 | 3 . Treads . | . . Legs 339 | 25 314 Wheels . | . . Hover . | . . Flight . | . . Fastest Speed 50 | 50 120 Average Speed 130 | 112 131 Slowest Speed 150 | 120 150 Overloaded Moves . | . . Propulsion Burnouts . | . . Robots Hopped . | . . Cave-ins Triggered . | . . Exploration Rate (%) 39 | 5 74 Regions Visited 1 Branch Regions . Pre-discovered Areas . | . . Known Exits Taken . | . . Unknown Exits Taken 1 | 1 . Scrap Searched . | . . Spaces Dug . | . . Terrain Destroyed . | . . Melee . | . . Projectile . | . . AOE . | . . Actions | -11 -10 --------- Run | Scr Mat Total 505 | 40 465 Wait 53 | . 53 Move 341 | 27 314 Hop . | . . Pick Up 25 | 7 18 Fast Attach . | . . Attach 17 | 6 11 Detach 1 | . 1 Swap 4 | . 4 Drop 5 | . 5 Fire 46 | . 46 Melee . | . . Ram . | . . Kick 13 | . 13 Crush . | . . Escape Stasis . | . . Rewire . | . . Trap . | . . Miscellaneous . | . . Route ------- -11/Scrapyard -10/Materials (discovered 3 exits: [*Mat] / [*Min x2]) History --------- Turn | Location | Event 28 | -11/Scrapyard | Discovered new exit (range 15) 45 | -11/Scrapyard | Entered Materials 228 | -10/Materials | Discovered new exit (range 16) 301 | -10/Materials | Build established: Mutant 436 | -10/Materials | Core integrity fell below 50% 476 | -10/Materials | Lost 3 parts (2n1w) 525 | -10/Materials | Discovered new exit (range 16) 593 | -10/Materials | Discovered new exit (range 15) 674 | -10/Materials | Core integrity fell below 20% 679 | -10/Materials | Destroyed by G-34 Mercenary with Small Laser Last Messages --------------- 00608_ Ion Engine destroyed. 00611_ B8 NQ&NE,6BXD6LR8IJNJY2FI8ZGZP CLOFUK 00614_ O-16 Technician: "IFF HANDSHAKE FAILED. SECURING TERMINAL." 00634_ O-16 Technician uses terminal to summon reinforcements. 00634_ ALERT: Hostiles spotted, dispatching reinforcements to Terminal M003. 00634_ O-16 Technician locks terminal. 00658_ Kicked G-34 Mercenary out of the way. 00660_ Slammed into G-34 Mercenary. 00663_ Kicked G-34 Mercenary out of the way. 00667_ Slammed into G-34 Mercenary. 00669_ Kicked G-34 Mercenary out of the way. 00670_ Slammed into G-34 Mercenary. 00670_ Destabilizing: Core damaged (-5). 00672_ Slammed into G-34 Mercenary. 00673_ Kicked G-34 Mercenary out of the way. 00675_ Aluminum Leg destroyed. 00675_ Slammed into G-34 Mercenary. 00675_ Destabilizing: Short circuit. 00675_ Broken Aluminum Leg permanently disabled. Map ----- +----------------------------------------------------+ | | | | | | | | | | | | | | | | | | | | | | | | | | | | | | | | | | | | | | | | | | | ??????????????###########??????????????? | | ??????????????# #??????????????? | | ??????????????# #??????????????? | | ??????????????# """ #??????????????? | | ??????????????#@ """"" #?############## | | ??????????????# g""""" #?# T # # | | ??????????????#gg""""" #?# """ # < # | | ??????????????# """ #?# """ # # | | ??????????????# #?# """ / + | | ????????#####?##+###+###### # # | | ???????##"""##?# + """ # # | | ??????##"|||"### ##### """ # # | | ??????#"" ""## #???# """ # # | | ??????# ## #???# # # | | ??????# < ## ############## # | | ??????# ## # | | ??????# ## # | | ??????## *==### # | | ???????##* ##?# ^^ ^ ############## # | | ????????# = #### # = ######## # | | ######### # # # # | | # # # """ + """ # # | | # "" ! # " # """ # """ + # | | # "Y # """ T # """ # """ # | | # "" # """ " # """ # # | | # # "" + # # | | # """ + # #########+## | | # """ # # #????# | | # """ ### ######## !/ #????# """ | +----------------------------------------------------+ Best States ------------- Heat Dissipation 25 Energy Generation 10 Energy Capacity 250 Matter Stores 275 Matter Capacity 300 Sight Range 16 Terrain Scan Density 10 Evasion (%) 40 Item Schematics ----------------- None Robot Schematics ------------------ None Fabricated ------------ Nothing Alien Tech Used ----------------- None Achievements -------------- None Challenges ------------ None Game ------ Seed TargetingSpikedTorch Manual? 0 Play Time 00:11:30 Cumulative 7.1 hours Start 2020.02.11 @ 17:23:35 End 2020.02.11 @ 17:33:25 Sessions 1 Manual Loads 0 Difficulty Rogue Special Mode None Game No. 14 Rogue 14 Adventurer 0 Explorer 0 Win Type - Total 0 Types 0/0/0/0/0/0/0 Lore% 3 Gallery% 10 Achievement% 12 Wizard Run 0 Options --------- ASCII 0 Keyboard 0 Movement Mouse Keybinds 0 Fullscreen 1 Font 24/Smallcaps Map View 76x50 Tactical HUD 1 Map Filters NONE Filters NONE Steam 1 RUN: 050ae97c-41bd-4c3d-931f-8ab67447ce01